bitfinex/quotes_BTCUSD_20250703
["timestamp","ask_amount","ask_price","bid_price","bid_amount"]
[1751524713352,0.05536591,109570.0,109560.0,0.05984247]
[1751524713555,0.06449191,109570.0,109560.0,0.06184247]
[1751524713765,0.07361807,109570.0,109560.0,0.06184247]
[1751524714601,0.04624,109570.0,109560.0,0.06184247]
[1751524714809,0.05536583,109570.0,109560.0,0.0447159]
[1751524715446,0.05536583,109570.0,109560.0,0.34480759]
[1751524715661,0.04624,109570.0,109560.0,0.34480759]
[1751524715869,0.05536591,109570.0,109560.0,0.0447159]
[1751524716407,0.04624,109570.0,109560.0,0.0447159]
[1751524716625,0.04624,109570.0,109560.0,0.37220927]
[1751524717032,0.04624,109570.0,109560.0,0.40874599]
[1751524717259,0.04624,109570.0,109560.0,0.37220927]
[1751524718554,0.04624,109570.0,109560.0,0.07211758]
[1751524718774,0.05536583,109570.0,109560.0,0.07211758]
[1751524718984,0.36458352,109570.0,109560.0,0.07211758]
[1751524719204,0.5653678,109570.0,109560.0,0.0296159]
[1751524719427,0.65812863,109570.0,109560.0,0.0142159]
[1751524719647,0.64900263,109570.0,109560.0,0.0142159]
[1751524721173,0.63987647,109570.0,109560.0,0.0142159]
[1751524725932,0.63075006,109570.0,109560.0,0.0142159]
[1751524726585,1.29842175,109570.0,109560.0,0.0142159]
[1751524726809,1.73118183,109570.0,109560.0,0.0142159]
[1751524727240,1.43109014,109570.0,109560.0,0.0142159]
[1751524728105,1.73118183,109570.0,109560.0,0.0142159]
[1751524738515,1.63842175,109570.0,109560.0,0.0142159]
[1751524740153,1.63842175,109570.0,109560.0,0.0122159]
[1751524740536,1.63742175,109570.0,109560.0,0.0102159]
[1751524740739,1.63742175,109570.0,109560.0,0.0122159]
[1751524748402,1.63742175,109570.0,109560.0,0.02931639]
[1751524749260,1.63742175,109570.0,109560.0,0.0122159]
[1751524749914,1.73018183,109570.0,109560.0,0.0122159]
[1751524754924,1.73018183,109570.0,109560.0,0.02933335]
[1751524760981,1.73018183,109570.0,109560.0,0.0122159]
[1751524761409,2.22748183,109570.0,109560.0,0.0122159]
[1751524762285,2.22748183,109570.0,109560.0,0.0102159]
[1751524765087,2.22748183,109570.0,109560.0,0.0092159]
[1751524765513,2.22848183,109570.0,109560.0,0.0092159]
[1751524778020,2.04320183,109570.0,109560.0,0.0092159]
[1751524778220,2.13568175,109570.0,109560.0,0.0092159]
[1751524782768,1.90520175,109570.0,109560.0,0.0092159]
[1751524782971,1.61801006,109570.0,109560.0,0.0092159]
[1751524783171,1.65325006,109570.0,109560.0,0.0414159]
[1751524783374,1.80325006,109570.0,109560.0,0.0414159]
[1751524783596,1.65325006,109570.0,109560.0,0.0414159]
[1751524784172,1.42281006,109570.0,109560.0,0.0414159]
[1751524784383,0.93635177,109570.0,109560.0,0.0414159]
[1751524784599,1.13984418,109570.0,109560.0,0.0414159]
[1751524784818,1.14897076,109570.0,109560.0,0.0414159]
[1751524789471,1.33150247,109570.0,109560.0,0.0414159]
[1751524792714,0.95460368,109570.0,109560.0,0.0414159]
[1751524792916,1.15805643,109570.0,109560.0,0.0414159]
[1751524793128,1.34058814,109570.0,109560.0,0.0414159]
[1751524793342,1.35465337,109570.0,109560.0,0.0414159]
[1751524793706,1.35365337,109570.0,109560.0,0.0434159]
[1751524794138,1.35365337,109570.0,109560.0,0.0444159]
[1751524794700,1.34452754,109570.0,109560.0,0.0444159]
[1751524795127,1.33046231,109570.0,109560.0,0.0444159]
[1751524796421,1.32133623,109570.0,109560.0,0.0284159]
[1751524796629,1.33753623,109570.0,109560.0,0.0122159]
[1751524800481,1.15233623,109570.0,109560.0,0.0122159]
[1751524800676,1.13613623,109570.0,109560.0,0.0122159]
[1751524801323,1.31220998,109570.0,109560.0,0.0122159]
[1751524802766,1.01211829,109570.0,109560.0,0.0122159]
[1751524802979,1.31220998,109570.0,109560.0,0.0122159]
[1751524810777,1.32133623,109570.0,109560.0,0.0122159]
[1751524810987,1.32133623,109570.0,109560.0,0.0432159]
[1751524811189,1.32133623,109570.0,109560.0,0.0275159]
[1751524811457,1.32133623,109570.0,109560.0,0.0122159]
[1751524814353,1.32133623,109570.0,109560.0,0.03958764]
[1751524815292,1.13880452,109570.0,109560.0,0.03958764]
[1751524816790,0.95360452,109570.0,109560.0,0.03958764]
[1751524818073,0.4973,109570.0,109560.0,0.07158764]
[1751524818286,0.4973,109570.0,109560.0,0.37396118]
[1751524818493,0.4973,109570.0,109560.0,0.40821605]
[1751524819370,0.4973,109570.0,109560.0,0.43564939]
[1751524819583,0.4973,109570.0,109560.0,0.08075262]
[1751524819773,0.4973,109570.0,109560.0,0.08303447]
[1751524820274,0.4973,109570.0,109560.0,0.13783955]
[1751524820518,0.60155285,109580.0,109560.0,0.13783955]
[1751524820741,0.68518743,109580.0,109570.0,0.02737984]
[1751524821350,0.69431301,109580.0,109570.0,0.02737984]
[1751524821617,0.68518743,109580.0,109570.0,0.02737984]
[1751524822682,0.68618743,109580.0,109570.0,0.02737984]
[1751524823110,0.67706202,109580.0,109570.0,0.02737984]
[1751524823322,0.68618743,109580.0,109570.0,0.02737984]
[1751524823532,0.46682743,109580.0,109570.0,0.02737984]
[1751524824142,0.45770202,109580.0,109570.0,0.02737984]
[1751524824354,0.46682735,109580.0,109570.0,0.02737984]
[1751524824762,0.47595285,109580.0,109570.0,0.02737984]
[1751524825187,0.47595276,109580.0,109570.0,0.02737984]
[1751524825385,0.36494194,109580.0,109570.0,0.0155]
[1751524825596,0.0466,109580.0,109570.0,0.05857984]
[1751524826687,0.055725,109580.0,109570.0,0.06086148]
[1751524827303,0.36494177,109580.0,109570.0,0.06086148]
[1751524827658,0.36494177,109580.0,109570.0,0.06286148]
[1751524828083,0.34669169,109580.0,109570.0,0.06286148]
[1751524828600,0.35481677,109580.0,109570.0,0.06286148]
[1751524828927,0.35481677,109580.0,109570.0,0.06386148]
[1751524829298,0.36394202,109580.0,109570.0,0.06157984]
[1751524829510,0.36394202,109580.0,109570.0,0.04587984]
[1751524829921,0.38219293,109580.0,109570.0,0.04587984]
[1751524830243,0.38219293,109580.0,109570.0,0.03037984]
[1751524830600,0.92690984,109580.0,109570.0,0.03037984]
[1751524830812,0.97210984,109580.0,109570.0,0.003]
[1751524831223,0.96298426,109580.0,109570.0,0.003]
[1751524833508,1.05574434,109580.0,109570.0,0.003]
[1751524835769,1.39574434,109580.0,109570.0,0.003]
[1751524836199,1.69583603,109580.0,109570.0,0.003]
[1751524836604,1.39574434,109580.0,109570.0,0.003]
[1751524838122,1.30298426,109580.0,109570.0,0.003]
[1751524843073,1.60307595,109580.0,109570.0,0.003]
[1751524843935,1.78823595,109580.0,109570.0,0.003]
[1751524845188,1.78823595,109580.0,109570.0,0.0032]
[1751524850456,1.55787595,109580.0,109570.0,0.0032]
[1751524850665,1.78823595,109580.0,109570.0,0.0032]
[1751524851088,1.82794731,109580.0,109570.0,0.0032]
[1751524854933,1.82794731,109580.0,109570.0,0.0012]
[1751524855289,1.82794731,109580.0,109570.0,0.0002]
[1751524855611,1.82894731,109580.0,109570.0,0.0002]
[1751524863722,1.59858731,109580.0,109570.0,0.0002]
[1751524863927,1.82890731,109580.0,109570.0,0.0002]
[1751524864279,1.52881562,109580.0,109570.0,0.0002]
[1751524866694,1.48910426,109580.0,109570.0,0.0002]
[1751524867341,1.45630426,109580.0,109570.0,0.0002]
[1751524869167,1.47230426,109580.0,109570.0,0.0002]
[1751524869397,1.48860426,109580.0,109570.0,0.0002]
[1751524873266,1.25828426,109580.0,109570.0,0.0002]
[1751524873481,1.48856426,109580.0,109570.0,0.0002]
[1751524877830,1.47226426,109580.0,109570.0,0.0002]
[1751524878247,1.45626426,109580.0,109570.0,0.0002]
[1751524880348,1.47186426,109580.0,109570.0,0.0002]
[1751524880561,1.48846426,109580.0,109570.0,0.0002]
[1751524880971,0.88828088,109580.0,109570.0,0.0002]
[1751524881176,1.48846426,109580.0,109570.0,0.0002]
[1751524881388,1.47186426,109580.0,109570.0,0.0002]
[1751524891730,1.48736426,109580.0,109570.0,0.0002]
[1751524918716,1.47186426,109580.0,109570.0,0.0002]
[1751524919742,1.45626426,109580.0,109570.0,0.0002]
[1751524919961,1.45618426,109580.0,109570.0,0.0002]
[1751524920620,1.45618426,109580.0,109570.0,0.0326]
[1751524921373,1.45618426,109580.0,109570.0,0.0167]
[1751524922442,1.45618426,109580.0,109570.0,0.0002]
[1751524925569,1.54894434,109580.0,109570.0,0.0002]
[1751524925780,1.54890434,109580.0,109570.0,0.0002]
[1751524926205,0.94872096,109580.0,109570.0,0.0002]
[1751524926419,1.54890434,109580.0,109570.0,0.0002]
[1751524928708,1.45614426,109580.0,109570.0,0.0002]
[1751524929761,0.93362896,109580.0,109570.0,0.0002]
[1751524929981,0.10328508,109580.0,109570.0,0.0328]
[1751524930202,0.04652,109580.0,109570.0,0.06019807]
[1751524930422,0.04652,109580.0,109570.0,0.36028976]
[1751524931063,0.04552,109580.0,109570.0,0.36028976]
[1751524931273,0.04552,109580.0,109570.0,0.06119807]
[1751524931491,0.04552,109580.0,109570.0,0.06347971]
[1751524931703,0.04552,109580.0,109570.0,0.37161073]
[1751524931922,0.04552,109580.0,109570.0,0.40786581]
[1751524932133,0.04552,109580.0,109570.0,0.10977412]
[1751524932341,0.04552,109580.0,109570.0,0.07551904]
[1751524932548,0.04552,109580.0,109570.0,0.11005576]
[1751524932793,0.04552,109580.0,109570.0,0.11077412]
[1751524932794,0.04652,109580.0,109570.0,0.11077412]
[1751524934291,0.04652,109580.0,109570.0,0.11305576]
[1751524934734,0.04652,109580.0,109570.0,0.11077412]
[1751524934950,0.04652,109580.0,109570.0,0.10173479]
[1751524935413,0.04652,109580.0,109570.0,0.07437933]
[1751524935619,0.0014,109580.0,109570.0,0.07437933]
[1751524935838,0.04652,109580.0,109570.0,0.07437933]
[1751524936693,0.0014,109580.0,109570.0,0.07437933]
[1751524937981,0.04652,109580.0,109570.0,0.07437933]
[1751524938608,0.04652,109580.0,109570.0,0.37447102]
[1751524942497,0.0014,109580.0,109570.0,0.37447102]
[1751524945259,0.0014,109580.0,109570.0,0.07437933]
[1751524945467,0.0014,109580.0,109570.0,0.37675266]
[1751524945685,0.0014,109580.0,109570.0,0.37447102]
[1751524946097,0.0014,109580.0,109570.0,0.55947102]
[1751524948790,0.0014,109580.0,109570.0,0.55939997]
[1751524949658,0.0014,109580.0,109570.0,0.59593669]
[1751524952018,0.0014,109580.0,109570.0,0.56860967]
[1751524952235,0.0014,109580.0,109570.0,0.62341475]
[1751524952687,0.0014,109580.0,109570.0,0.43841475]
[1751524952907,0.0014,109580.0,109570.0,0.62341475]
[1751524953832,0.0014,109580.0,109570.0,0.96341475]
[1751524954060,0.0014,109580.0,109570.0,0.92687803]
[1751524954727,0.0004,109580.0,109570.0,0.62378634]
[1751524954955,0.0014,109580.0,109570.0,0.92787803]
[1751524956120,0.0014,109580.0,109570.0,0.96443761]
[1751524956586,0.0014,109580.0,109570.0,0.97356411]
[1751524957010,0.0014,109580.0,109570.0,0.96443761]
[1751524957419,0.0014,109580.0,109570.0,0.95531103]
[1751524957636,0.0014,109580.0,109570.0,0.96243761]
[1751524957848,0.0014,109580.0,109570.0,0.96443761]
[1751524958865,0.0014,109580.0,109570.0,0.90963253]
[1751524959946,0.0014,109580.0,109570.0,0.90050595]
[1751524960827,0.0014,109580.0,109570.0,0.60041426]
[1751524961035,0.0014,109580.0,109570.0,0.90050595]
[1751524973693,0.0014,109580.0,109570.0,0.97357939]
[1751524977246,0.0014,109580.0,109570.0,0.95707939]
[1751524978684,0.0014,109580.0,109570.0,0.94097939]
[1751524986705,0.0014,109580.0,109570.0,0.97277939]
[1751524988920,0.0014,109580.0,109570.0,0.95667939]
[1751524989137,0.0014,109580.0,109570.0,1.04943947]
[1751524989360,0.0014,109580.0,109570.0,1.06593947]
[1751524990713,0.0014,109580.0,109570.0,1.04943947]
[1751524991409,0.0014,109580.0,109570.0,1.06583947]
[1751524991851,0.0014,109580.0,109570.0,1.04943947]
[1751524992737,0.0014,109580.0,109570.0,1.03373947]
[1751525002928,0.0014,109580.0,109570.0,0.99236603]
[1751525003137,0.0014,109580.0,109570.0,0.97706603]
[1751525003360,0.0014,109580.0,109570.0,0.96066603]
[1751525003554,0.0014,109580.0,109570.0,1.03365128]
[1751525005292,0.0014,109580.0,109570.0,1.04277769]
[1751525005491,0.0014,109580.0,109570.0,1.23443573]
[1751525005686,0.0014,109580.0,109570.0,1.2253094]
[1751525006271,0.0014,109580.0,109570.0,1.22518949]
[1751525006471,0.0014,109580.0,109570.0,1.2343159]
[1751525006695,0.0014,109580.0,109570.0,1.24344223]
[1751525006897,0.0014,109580.0,109570.0,1.25256848]
[1751525007075,0.0014,109580.0,109570.0,1.2343159]
[1751525007947,0.0014,109580.0,109570.0,1.22518949]
[1751525008232,0.0014,109580.0,109570.0,1.2343159]
[1751525009210,0.0166,109580.0,109570.0,1.2343159]
[1751525009411,0.0014,109580.0,109570.0,1.2343159]
[1751525011085,0.0014,109580.0,109570.0,1.24344223]
[1751525011291,0.0014,109580.0,109570.0,1.2343159]
[1751525011895,0.0166,109580.0,109570.0,1.2343159]
[1751525012116,0.0166,109580.0,109570.0,1.24344223]
[1751525012328,0.0166,109580.0,109570.0,1.2343159]
[1751525012537,0.0166,109580.0,109570.0,1.23411103]
[1751525012767,0.0166,109580.0,109570.0,1.22498462]
[1751525013006,0.0166,109580.0,109570.0,1.23411103]
[1751525013241,0.0166,109580.0,109570.0,1.22498462]
[1751525014110,0.0014,109580.0,109570.0,1.24323736]
[1751525014332,0.0014,109580.0,109570.0,1.23411103]
[1751525015926,0.0014,109580.0,109570.0,1.24323736]
[1751525016130,0.0014,109580.0,109570.0,1.22498462]
[1751525016349,0.0014,109580.0,109570.0,1.23411103]
[1751525016481,0.0014,109580.0,109570.0,0.93401934]
[1751525016732,0.0014,109580.0,109570.0,1.23411103]
[1751525017160,0.0014,109580.0,109570.0,1.03332641]
[1751525017390,0.0014,109580.0,109570.0,1.04245299]
[1751525017634,0.0169,109580.0,109570.0,1.04245299]
[1751525018263,0.0169,109580.0,109570.0,1.05157949]
[1751525018493,0.0169,109580.0,109570.0,1.0607059]
[1751525018667,0.0169,109580.0,109570.0,1.04245299]
[1751525019093,0.0169,109580.0,109570.0,0.84844641]
[1751525019468,0.0333,109580.0,109570.0,1.03328641]
[1751525019654,0.0333,109580.0,109570.0,1.04241299]
[1751525019853,0.0333,109580.0,109570.0,0.73319472]
[1751525020062,0.0333,109580.0,109570.0,1.04241299]
[1751525021105,0.0333,109580.0,109570.0,1.05153949]
[1751525021312,0.0169,109580.0,109570.0,1.05153949]
[1751525021731,0.0169,109580.0,109570.0,1.04241299]
[1751525022136,0.0169,109580.0,109570.0,0.85757299]
[1751525022343,0.0169,109580.0,109570.0,1.04241299]
[1751525022757,0.0169,109580.0,109570.0,1.03328641]
[1751525022965,0.0169,109580.0,109570.0,1.04241299]
[1751525023378,0.0169,109580.0,109570.0,1.03328641]
[1751525023786,0.0169,109580.0,109570.0,0.73319472]
[1751525023994,0.0332,109580.0,109570.0,1.03328641]
[1751525024623,0.0332,109580.0,109570.0,0.73319472]
[1751525024833,0.0332,109580.0,109570.0,1.03328641]
[1751525025686,0.0332,109580.0,109570.0,1.03348641]
[1751525029198,0.0332,109580.0,109570.0,1.03359131]
[1751525030839,0.0169,109580.0,109570.0,1.03359131]
[1751525031462,0.0169,109580.0,109570.0,1.04271789]
[1751525032528,0.0169,109580.0,109570.0,0.96060606]
[1751525033340,0.0169,109580.0,109570.0,0.97514691]
[1751525034296,0.0169,109580.0,109570.0,0.98427349]
[1751525035880,0.0169,109580.0,109570.0,0.99339999]
[1751525036047,0.0169,109580.0,109570.0,1.0025264]
[1751525036657,0.0169,109580.0,109570.0,0.99339999]
[1751525037004,0.0169,109580.0,109570.0,1.19418436]
[1751525037005,0.0014,109580.0,109570.0,1.19418436]
[1751525037217,0.0014,109580.0,109570.0,1.20330986]
[1751525037438,0.0014,109580.0,109570.0,1.28552575]
[1751525037646,0.0014,109580.0,109570.0,1.27639959]
[1751525037845,0.0014,109580.0,109570.0,1.28552575]
[1751525038022,0.0014,109580.0,109570.0,1.27639959]
[1751525039026,0.0014,109580.0,109570.0,1.28552575]
[1751525039490,0.0014,109580.0,109570.0,1.27639959]
[1751525040129,0.0014,109580.0,109570.0,1.28552575]
[1751525040334,0.0014,109580.0,109570.0,1.27639959]
[1751525040536,0.0014,109580.0,109570.0,1.28552575]
[1751525040713,0.0014,109580.0,109570.0,1.27639959]
[1751525040926,0.0014,109580.0,109570.0,1.28552575]
[1751525041328,0.0014,109580.0,109570.0,1.29465183]
[1751525041530,0.0014,109580.0,109570.0,1.29465133]
[1751525041731,0.0014,109580.0,109570.0,1.28552533]
[1751525041979,0.0014,109580.0,109570.0,1.30879925]
[1751525042297,0.0014,109580.0,109570.0,1.61801694]
[1751525042500,0.0014,109580.0,109570.0,1.57667513]
[1751525042718,0.0002,109600.0,109590.0,0.55528866]
[1751525042917,0.0002,109600.0,109590.0,1.17442476]
[1751525043125,0.0002,109600.0,109590.0,1.14202476]
[1751525043356,0.0002,109600.0,109590.0,1.24230286]
[1751525044057,0.0002,109600.0,109590.0,1.23317853]
[1751525044272,0.0002,109600.0,109590.0,1.24230295]
[1751525046882,0.0002,109600.0,109590.0,1.26755178]
[1751525047105,0.0002,109600.0,109590.0,1.25842745]
[1751525047324,0.0002,109600.0,109590.0,1.28295178]
[1751525047721,0.0002,109600.0,109590.0,1.27382745]
[1751525048036,0.0002,109600.0,109590.0,1.28295178]
[1751525048320,0.0002,109600.0,109590.0,1.27382745]
[1751525049069,0.0002,109600.0,109590.0,1.26470303]
[1751525049293,0.0002,109600.0,109590.0,1.24930303]
[1751525049496,0.0002,109600.0,109590.0,1.24017853]
[1751525049694,0.0002,109600.0,109590.0,1.58139464]
[1751525049901,0.0002,109600.0,109590.0,1.59051914]
[1751525050689,0.0002,109600.0,109590.0,1.29042745]
[1751525050896,0.0002,109600.0,109590.0,1.29955178]
[1751525051515,0.0002,109600.0,109590.0,1.59964347]
[1751525052745,0.0002,109600.0,109590.0,1.59051914]
[1751525052958,0.0002,109600.0,109590.0,1.59964347]
[1751525054210,0.0002,109600.0,109590.0,1.58139472]
[1751525054676,0.0002,109600.0,109590.0,1.58139489]
[1751525054876,0.0002,109600.0,109590.0,1.56479489]
[1751525055101,0.0002,109600.0,109590.0,1.55567031]
[1751525055738,0.0002,109600.0,109590.0,1.2647032]
[1751525056340,0.0002,109600.0,109590.0,1.2829932]
[1751525056543,0.0002,109600.0,109590.0,1.2738277]
[1751525056754,0.0002,109600.0,109590.0,1.2647032]
[1751525057865,0.0002,109600.0,109590.0,1.24645395]
[1751525058037,0.0002,109600.0,109590.0,1.24017862]
[1751525058450,0.0002,109600.0,109590.0,1.2493032]
[1751525058662,0.0002,109600.0,109590.0,1.2584277]
[1751525058885,0.0002,109600.0,109590.0,0.95833601]
[1751525059074,0.0002,109600.0,109590.0,1.2493032]
[1751525059875,0.0002,109600.0,109590.0,1.24017862]
[1751525060436,0.0002,109600.0,109590.0,1.2493032]
[1751525060660,0.0002,109600.0,109590.0,1.24017862]
[1751525060861,0.0002,109600.0,109590.0,1.2493032]
[1751525061837,0.0002,109600.0,109590.0,1.24017862]
[1751525062044,0.0002,109600.0,109590.0,1.2493032]
[1751525062949,0.0002,109600.0,109590.0,1.24017862]
[1751525063157,0.0002,109600.0,109590.0,1.24017853]
[1751525063779,0.0002,109600.0,109590.0,1.2493032]
[1751525063958,0.0002,109600.0,109590.0,1.2584277]
[1751525064172,0.0002,109600.0,109590.0,1.2493032]
[1751525064394,0.0002,109600.0,109590.0,1.2584277]
[1751525064547,0.0002,109600.0,109590.0,1.2493032]
[1751525064748,0.0002,109600.0,109590.0,1.24017862]
[1751525064963,0.0002,109600.0,109590.0,1.2584277]
[1751525065904,0.0002,109600.0,109590.0,1.2493032]
[1751525066526,0.0002,109600.0,109590.0,1.2584277]
[1751525066732,0.0002,109600.0,109590.0,1.24017862]
[1751525067180,0.0002,109600.0,109590.0,0.94921151]
[1751525067364,0.0002,109600.0,109590.0,1.2493032]
[1751525068184,0.0002,109600.0,109590.0,1.24017862]
[1751525068391,0.0002,109600.0,109590.0,1.2493032]
[1751525068598,0.0002,109600.0,109590.0,1.1764481]
[1751525069562,0.0306,109600.0,109590.0,0.48172393]
[1751525069773,0.0306,109600.0,109590.0,1.23092594]
[1751525069986,0.0306,109600.0,109590.0,1.04842754]
[1751525070199,0.0306,109600.0,109590.0,1.03930262]
[1751525072268,0.0306,109600.0,109590.0,0.96649562]
[1751525073465,0.0306,109600.0,109590.0,0.97562054]
[1751525073625,0.0306,109600.0,109590.0,0.96649562]
[1751525075149,0.0306,109600.0,109590.0,0.67552885]
[1751525075326,0.0306,109600.0,109590.0,0.97562054]
[1751525075564,0.0306,109600.0,109590.0,1.06676413]
[1751525075770,0.0306,109600.0,109590.0,1.05763921]
[1751525076188,0.0306,109600.0,109590.0,1.06676413]
[1751525076367,0.0306,109600.0,109590.0,1.05763921]
[1751525076795,0.0306,109600.0,109590.0,1.06676413]
[1751525078810,0.0306,109600.0,109590.0,1.05763921]
[1751525081372,0.0306,109600.0,109590.0,1.06676413]
[1751525083176,0.0155,109600.0,109590.0,1.26751194]
[1751525083374,0.0002,109600.0,109590.0,1.25838736]
[1751525083576,0.0002,109600.0,109590.0,1.26751203]
[1751525085421,0.0002,109600.0,109590.0,1.26751211]
[1751525086034,0.0002,109600.0,109590.0,1.27663678]
[1751525086500,0.0002,109600.0,109590.0,1.28576136]
[1751525086701,0.0002,109600.0,109590.0,1.27663678]
[1751525087451,0.0002,109600.0,109590.0,1.28576136]
[1751525087660,0.0002,109600.0,109590.0,1.27663678]
[1751525088481,0.0002,109600.0,109590.0,1.26751211]
[1751525088697,0.0327,109600.0,109590.0,0.94917084]
[1751525088900,0.0327,109600.0,109590.0,1.05763921]
[1751525089112,0.0327,109600.0,109590.0,1.06676413]
[1751525090247,0.0327,109600.0,109590.0,1.07588896]
[1751525090457,0.0327,109600.0,109590.0,1.06676404]
[1751525093024,0.0327,109600.0,109590.0,1.07588879]
[1751525093577,0.0327,109600.0,109590.0,1.26751186]
[1751525093759,0.0168,109600.0,109590.0,1.27663644]
[1751525093957,0.0168,109600.0,109590.0,1.26751186]
[1751525094733,0.0168,109600.0,109590.0,1.25838719]
[1751525094934,0.0168,109600.0,109590.0,1.26751186]
[1751525095145,0.0168,109600.0,109590.0,1.25838719]
[1751525095795,0.0168,109600.0,109590.0,1.26751186]
[1751525098296,0.0168,109600.0,109590.0,1.27663644]
[1751525099266,0.0168,109600.0,109590.0,1.26751186]
[1751525099713,0.0168,109600.0,109590.0,1.27663644]
[1751525100795,0.0168,109600.0,109590.0,1.28576086]
[1751525100975,0.0168,109600.0,109590.0,1.27663644]
[1751525101597,0.0168,109600.0,109590.0,1.26751186]
[1751525102153,0.0168,109600.0,109590.0,1.27663644]
[1751525103062,0.0168,109600.0,109590.0,1.26751186]
[1751525103265,0.0168,109600.0,109590.0,1.27663644]
[1751525105209,0.0168,109600.0,109590.0,1.28576094]
[1751525105622,0.0168,109600.0,109590.0,1.26751186]
[1751525105824,0.0168,109600.0,109590.0,1.05763921]
[1751525106917,0.0318,109600.0,109590.0,1.05763921]
[1751525116552,0.0318,109600.0,109590.0,1.07591921]
[1751525116734,0.0318,109600.0,109590.0,1.05763921]
[1751525118044,0.03070433,109600.0,109590.0,1.05763921]
[1751525120564,0.0149919,109610.0,109590.0,1.05763921]
[1751525120764,0.0302919,109610.0,109600.0,0.99033173]
[1751525121340,0.0464919,109610.0,109600.0,1.01775573]
[1751525121944,0.0464919,109610.0,109600.0,1.01789652]
[1751525122699,0.0464919,109610.0,109600.0,0.85042672]
[1751525123009,0.0464919,109610.0,109600.0,1.03698672]
[1751525123710,0.0464919,109610.0,109600.0,1.03698665]
[1751525123929,0.04640629,109610.0,109600.0,1.03898665]
[1751525124707,0.04680629,109610.0,109600.0,1.03898665]
[1751525126729,0.04680629,109610.0,109600.0,0.85442649]
[1751525126947,0.04680629,109610.0,109600.0,1.03898649]
[1751525127568,0.04680629,109610.0,109600.0,0.85442649]
[1751525127789,0.04680629,109610.0,109600.0,1.03898649]
[1751525129684,0.30029169,109620.0,109600.0,1.06086164]
[1751525129960,0.0002,109620.0,109610.0,0.23924538]
[1751525130217,0.0002,109620.0,109610.0,0.2782105]
[1751525130426,0.0002,109620.0,109610.0,0.28375935]
[1751525131047,0.30029169,109620.0,109610.0,0.28375935]
[1751525131577,0.30029169,109620.0,109610.0,0.30563253]
[1751525132552,0.30029169,109620.0,109610.0,0.30663253]
[1751525132786,0.33309169,109620.0,109610.0,0.30663253]
[1751525132960,0.33309169,109620.0,109610.0,0.28475935]
[1751525133162,0.33309169,109620.0,109610.0,0.30663246]
[1751525135343,0.33309169,109620.0,109610.0,0.31556332]
[1751525138910,0.33309169,109620.0,109610.0,0.31556145]
[1751525143407,0.33309169,109620.0,109610.0,0.28813745]
[1751525144057,0.33309169,109620.0,109610.0,0.10357745]
[1751525144244,0.33309169,109620.0,109610.0,0.28809745]
[1751525144449,0.33309169,109620.0,109610.0,0.28829745]
[1751525146257,0.33309169,109620.0,109610.0,0.28829759]
[1751525152276,0.033,109620.0,109610.0,0.28829759]
[1751525154483,0.033,109620.0,109610.0,0.28829647]
[1751525155113,0.033,109620.0,109610.0,0.58838816]
[1751525155507,0.033,109620.0,109610.0,0.28829647]
[1751525155749,0.033,109620.0,109610.0,0.23361109]
[1751525155955,0.033,109620.0,109610.0,0.30653105]
[1751525156173,0.033,109620.0,109610.0,0.33395505]
[1751525156380,0.033,109620.0,109610.0,0.26103509]
[1751525157224,0.033,109620.0,109610.0,0.07651509]
[1751525157444,0.033,109620.0,109610.0,0.26099509]
[1751525158065,0.33309169,109620.0,109610.0,0.26099509]
[1751525159503,0.0167,109620.0,109610.0,0.26099509]
[1751525160521,0.0167,109620.0,109610.0,0.23912198]
[1751525160734,0.0167,109620.0,109610.0,0.26098494]
[1751525164223,0.0167,109620.0,109610.0,0.28829203]
[1751525165737,0.0167,109620.0,109610.0,0.26642907]
[1751525168159,0.0002,109620.0,109610.0,0.26642907]
[1751525168661,0.0002,109620.0,109610.0,0.59782076]
[1751525168887,0.0002,109620.0,109610.0,0.56652076]
[1751525169327,0.0002,109620.0,109610.0,0.26642907]
[1751525171914,0.0002,109620.0,109610.0,0.56652076]
[1751525175225,0.0002,109620.0,109610.0,0.56651139]
[1751525178711,0.0002,109620.0,109610.0,0.65927147]
[1751525178916,0.0002,109620.0,109610.0,0.69057147]
[1751525179278,0.0002,109620.0,109610.0,0.69969472]
[1751525179482,0.0002,109620.0,109610.0,0.69057147]
[1751525179684,0.0002,109620.0,109610.0,0.68957147]
[1751525180090,0.0002,109620.0,109610.0,0.69257147]
[1751525181517,0.0002,109620.0,109610.0,0.69657147]
[1751525183418,0.0002,109620.0,109610.0,0.39647978]
[1751525183622,0.0002,109620.0,109610.0,0.66527147]
[1751525184211,0.0002,109620.0,109610.0,0.73819143]
[1751525189617,0.0002,109620.0,109610.0,0.66527147]
[1751525190931,0.0002,109620.0,109610.0,0.66527552]
[1751525194020,0.0002,109620.0,109610.0,0.36518383]
[1751525194225,0.0002,109620.0,109610.0,0.66527552]
[1751525199886,0.0002,109620.0,109610.0,0.73819548]
[1751525202312,0.0002,109620.0,109610.0,0.43810379]
[1751525202525,0.0002,109620.0,109610.0,0.73819548]
[1751525203171,0.0002,109620.0,109610.0,0.76929548]
[1751525204020,0.0002,109620.0,109610.0,0.77841873]
[1751525204224,0.0002,109620.0,109610.0,0.76929548]
[1751525204643,0.0002,109620.0,109610.0,0.73819548]
[1751525205728,0.0002,109620.0,109610.0,0.43810379]
[1751525205932,0.0002,109620.0,109610.0,0.73819548]
[1751525209817,0.0002,109620.0,109610.0,0.76006285]
[1751525212688,0.0002,109620.0,109610.0,0.55850105]
[1751525212891,0.0002,109620.0,109610.0,0.74282105]
[1751525218157,0.1907,109620.0,109610.0,0.74282105]
[1751525220560,0.1907,109620.0,109610.0,0.62519446]
[1751525220744,0.1907,109620.0,109610.0,0.44272936]
[1751525220951,0.1907,109620.0,109610.0,0.74282105]
[1751525221613,0.2058,109620.0,109610.0,0.74282105]
[1751525221828,0.52189169,109620.0,109610.0,0.25840936]
[1751525222025,0.52189169,109620.0,109610.0,0.34996928]
[1751525224537,0.52189169,109620.0,109610.0,0.34996806]
[1751525225364,0.2218,109620.0,109610.0,0.34996806]
[1751525225564,0.52189169,109620.0,109610.0,0.34996806]
[1751525225767,0.82198338,109620.0,109610.0,0.10198611]
[1751525225985,0.83110513,109620.0,109610.0,0.09832743]
[1751525226180,0.88506705,109620.0,109610.0,0.09832743]
[1751525226414,0.9033113,109620.0,109610.0,0.04365248]
[1751525226589,1.08575975,109620.0,109610.0,0.07097905]
[1751525226862,1.06751608,109620.0,109610.0,0.03052657]
[1751525227064,1.15115416,109620.0,109610.0,0.03052657]